lending/lending_fUSD_20240411
["ID","MTS","AMOUNT","RATE_DAILY","PERIOD"]
[322169428,1712862645057,-500.0,0.00027671,2]
[322169429,1712862645068,-500.0,0.00027671,2]
[322169430,1712862645077,-500.0,0.00027671,2]
[322169431,1712862645086,-500.0,0.00027671,2]
[322169432,1712862645097,-500.0,0.00027671,2]
[322169433,1712862645108,-500.0,0.00027671,2]
[322169434,1712862645118,-500.0,0.00027671,2]
[322169435,1712862645129,-500.0,0.00027671,2]
[322169436,1712862645139,-500.0,0.00027671,2]
[322169437,1712862645150,-919.52,0.00027671,2]
[322169438,1712862645159,-500.0,0.00027671,2]
[322169439,1712862645170,-830.71,0.00027671,2]
[322169440,1712862645180,-1593.66,0.00027671,2]
[322169441,1712862645189,-627.3,0.00027671,2]
[322169442,1712862645198,-500.0,0.00027671,2]
[322169443,1712862645208,-500.0,0.00027671,2]
[322169444,1712862645218,-793.37,0.00027671,2]
[322169445,1712862645229,-1145.97,0.00027671,2]
[322169446,1712862645241,-500.0,0.00027671,2]
[322169447,1712862645252,-500.0,0.00027671,2]
[322169448,1712862645264,-880.94,0.00027671,2]
[322169449,1712862645275,-500.0,0.00027671,2]
[322169450,1712862645285,-500.0,0.00027671,2]
[322169451,1712862645295,-1772.03,0.00027671,2]
[322169452,1712862645305,-500.0,0.00027671,2]
[322169453,1712862645319,-209.54636017,0.00027671,2]
[322169454,1712862645330,-500.0,0.00027671,2]
[322169455,1712862645340,-500.0,0.00027671,2]
[322169456,1712862645350,-500.0,0.00027671,2]
[322169457,1712862645359,-500.0,0.00027671,2]
[322169458,1712862645369,-500.0,0.00027671,2]
[322169459,1712862645379,-1798.19,0.00027671,2]
[322169460,1712862645390,-500.0,0.00027671,2]
[322169461,1712862645403,-500.0,0.00027671,2]
[322169462,1712862645414,-1744.68,0.00027671,2]
[322169463,1712862645424,-500.0,0.00027671,2]
[322169464,1712862645434,-500.0,0.00027671,2]
[322169465,1712862645446,-500.0,0.00027671,2]
[322169466,1712862645456,-2010.88,0.00027671,2]
[322169467,1712862645466,-500.0,0.00027671,2]
[322169468,1712862645476,-500.0,0.00027671,2]
[322169469,1712862645487,-500.0,0.00027671,2]
[322169470,1712862645497,-500.0,0.00027671,2]
[322169471,1712862645506,-500.0,0.00027671,2]
[322169472,1712862645515,-1170.95,0.00027671,2]
[322169473,1712862645525,-500.0,0.00027671,2]
[322169474,1712862645534,-2399.42,0.00027671,2]
[322169475,1712862645543,-500.0,0.00027671,2]
[322169476,1712862645553,-500.0,0.00027671,2]
[322169477,1712862645564,-967.44,0.00027671,2]
[322169478,1712862645574,-873.95,0.00027671,2]
[322169479,1712862645583,-1241.23,0.00027671,2]
[322169480,1712862645592,-500.0,0.00027671,2]
[322169481,1712862645601,-500.0,0.00027671,2]
[322169482,1712862645611,-500.0,0.00027671,2]
[322169483,1712862645621,-2052.61,0.00027671,2]
[322169484,1712862645630,-500.0,0.00027671,2]
[322169485,1712862645639,-877.37,0.00027671,2]
[322169486,1712862645649,-500.0,0.00027671,2]
[322169487,1712862645658,-1361.85,0.00027671,2]
[322169488,1712862645667,-183.06737781,0.00027671,2]
[322169489,1712862645677,-861.5,0.00027671,2]
[322169491,1712862645686,-500.0,0.00027671,2]
[322169492,1712862645696,-500.0,0.00027671,2]
[322169493,1712862645705,-500.0,0.00027671,2]
[322169494,1712862645714,-500.0,0.00027671,2]
[322169495,1712862645723,-1649.2,0.00027671,2]
[322169496,1712862645733,-500.0,0.00027671,2]
[322169497,1712862645742,-500.0,0.00027671,2]
[322169498,1712862645752,-500.0,0.00027671,2]
[322169499,1712862645761,-500.0,0.00027671,2]
[322169500,1712862645771,-500.0,0.00027671,2]
[322169501,1712862645780,-500.0,0.00027671,2]
[322169502,1712862645789,-530.67,0.00027671,2]
[322169503,1712862645799,-500.0,0.00027671,2]
[322169504,1712862645809,-500.0,0.00027671,2]
[322169505,1712862645818,-500.0,0.00027671,2]
[322169506,1712862645828,-1320.15,0.00027671,2]
[322169507,1712862645837,-500.0,0.00027671,2]
[322169508,1712862645847,-500.0,0.00027671,2]
[322169509,1712862645856,-500.0,0.00027671,2]
[322169510,1712862645865,-1257.56,0.00027671,2]
[322169511,1712862645874,-742.2,0.00027671,2]
[322169512,1712862645884,-610.67,0.00027671,2]
[322169513,1712862645894,-592.02,0.00027671,2]
[322169514,1712862645903,-500.0,0.00027671,2]
[322169515,1712862645913,-500.0,0.00027671,2]
[322169516,1712862645922,-788.53,0.00027671,2]
[322169517,1712862645931,-1138.71,0.00027671,2]
[322169518,1712862645941,-500.0,0.00027671,2]
[322169519,1712862645950,-500.0,0.00027671,2]
[322169520,1712862645959,-561.24,0.00027671,2]
[322169521,1712862645968,-678.94,0.00027671,2]
[322169522,1712862645978,-555.85,0.00027671,2]
[322169523,1712862645987,-1660.41,0.00027671,2]
[322169524,1712862645996,-500.0,0.00027671,2]
[322169525,1712862646006,-500.0,0.00027671,2]
[322169526,1712862646015,-500.0,0.00027671,2]
[322169527,1712862646024,-500.0,0.00027671,2]
[322169528,1712862646034,-1291.37,0.00027671,2]
[322169529,1712862646043,-950.5,0.00027671,2]
[322169530,1712862646052,-500.0,0.00027671,2]
[322169531,1712862646064,-500.0,0.00027671,2]
[322169532,1712862646073,-637.23,0.00027671,2]
[322169533,1712862646083,-500.0,0.00027671,2]
[322169534,1712862646092,-3361.92,0.00027671,2]
[322169535,1712862646101,-500.0,0.00027671,2]
[322169536,1712862646111,-500.0,0.00027671,2]
[322169537,1712862646120,-1475.18,0.00027671,2]
[322169538,1712862646129,-500.0,0.00027671,2]
[322169539,1712862646138,-226.27105714,0.00027671,2]
[322169540,1712862646148,-500.0,0.00027671,2]
[322169541,1712862646157,-500.0,0.00027671,2]
[322169542,1712862646166,-500.0,0.00027671,2]
[322169543,1712862646175,-500.0,0.00027671,2]
[322169544,1712862646184,-500.0,0.00027671,2]
[322169545,1712862646193,-562.81,0.00027671,2]
[322169546,1712862646203,-500.0,0.00027671,2]
[322169547,1712862646212,-576.13513664,0.00027671,2]
[322169548,1712862646221,-330.73899374,0.00027671,2]
[322169549,1712862646235,-500.0,0.00027671,2]
[322169550,1712862646244,-300.0,0.00027671,2]
[322169551,1712862646253,-150.0,0.00027671,2]
[322169552,1712862646262,-1667.8,0.00027671,2]
[322169553,1712862646273,-500.0,0.00027671,2]
[322169554,1712862646282,-500.0,0.00027671,2]
[322169555,1712862646292,-500.0,0.00027671,2]
[322169556,1712862646302,-500.0,0.00027671,2]
[322169557,1712862646313,-500.0,0.00027671,2]
[322169558,1712862646322,-590.94,0.00027671,2]
[322169559,1712862646332,-500.0,0.00027671,2]
[322169560,1712862646341,-500.0,0.00027671,2]
[322169561,1712862646350,-500.0,0.00027671,2]
[322169562,1712862646359,-181.41047333,0.00027671,2]
[322169563,1712862646368,-500.0,0.00027671,2]
[322169564,1712862646378,-508.91048277,0.00027671,2]
[322169565,1712862646387,-500.0,0.00027671,2]
[322169566,1712862646396,-500.0,0.00027671,2]
[322169567,1712862646406,-581.06,0.00027671,2]
[322169568,1712862646416,-946.3,0.00027671,2]
[322169569,1712862646426,-500.0,0.00027671,2]
[322169570,1712862646437,-548.73,0.00027671,2]
[322169571,1712862646446,-1281.88,0.00027671,2]
[322169572,1712862646455,-500.0,0.00027671,2]
[322169573,1712862646465,-2077.77,0.00027671,2]
[322169574,1712862646474,-500.0,0.00027671,2]
[322169575,1712862646484,-500.0,0.00027671,2]
[322169576,1712862646494,-500.0,0.00027671,2]
[322169578,1712862646503,-500.0,0.00027671,2]
[322169581,1712862646513,-1456.29,0.00027671,2]
[322169583,1712862646523,-500.0,0.00027671,2]
[322169585,1712862646533,-500.0,0.00027671,2]
[322169586,1712862646544,-550.58,0.00027671,2]
[322169589,1712862646555,-3985.3,0.00027671,2]
[322169591,1712862646567,-2199.43,0.00027671,2]
[322169593,1712862646577,-544.3,0.00027671,2]
[322169595,1712862646587,-313.23139447,0.00027671,2]
[322169596,1712862646596,-500.0,0.00027671,2]
[322169599,1712862646606,-2692.71,0.00027671,2]
[322169601,1712862646615,-500.0,0.00027671,2]
[322169603,1712862646625,-2885.07,0.00027671,2]
[322169604,1712862646635,-500.0,0.00027671,2]
[322169606,1712862646644,-500.0,0.00027671,2]
[322169609,1712862646654,-500.0,0.00027671,2]
[322169611,1712862646664,-500.0,0.00027671,2]
[322169613,1712862646673,-500.0,0.00027671,2]
[322169615,1712862646683,-2469.33,0.00027671,2]
[322169617,1712862646692,-500.0,0.00027671,2]
[322169619,1712862646706,-500.0,0.00027671,2]
[322169621,1712862646716,-7032.57,0.00027671,2]
[322169623,1712862646726,-500.0,0.00027671,2]
[322169625,1712862646736,-500.0,0.00027671,2]
[322169627,1712862646746,-500.0,0.00027671,2]
[322169629,1712862646756,-1107.54,0.00027671,2]
[322169631,1712862646765,-500.0,0.00027671,2]
[322169633,1712862646776,-1833.91,0.00027671,2]
[322169635,1712862646785,-500.0,0.00027671,2]
[322169637,1712862646795,-500.0,0.00027671,2]
[322169639,1712862646805,-500.0,0.00027671,2]
[322169641,1712862646816,-500.0,0.00027671,2]
[322169643,1712862646825,-500.0,0.00027671,2]
[322169645,1712862646837,-13874.55,0.00027671,2]
[322169646,1712862646846,-4491.48,0.00027671,2]
[322169647,1712862646857,-500.0,0.00027671,2]
[322169648,1712862646868,-500.0,0.00027671,2]
[322169649,1712862646879,-3687.27,0.00027671,2]
[322169650,1712862646889,-1572.54,0.00027671,2]
[322169651,1712862646900,-7560.98,0.00027671,2]
[322169652,1712862646911,-500.0,0.00027671,2]
[322169654,1712862646921,-1444.17,0.00027671,2]
[322169656,1712862646931,-500.0,0.00027671,2]
[322169658,1712862646941,-782.78,0.00027671,2]
[322169660,1712862646951,-500.0,0.00027671,2]
[322169662,1712862646961,-3046.33,0.00027671,2]
[322169664,1712862646971,-16108.83,0.00027671,2]
[322169666,1712862646981,-500.0,0.00027671,2]
[322169668,1712862646990,-2095.65,0.00027671,2]
[322169670,1712862647001,-6885.05,0.00027671,2]
[322169679,1712862647081,-500.0,0.00027671,2]
[322169680,1712862647090,-1727.13,0.00027671,2]
[322169681,1712862647100,-500.0,0.00027671,2]
[322169682,1712862647110,-500.0,0.00027671,2]
[322169683,1712862647122,-11863.58,0.00027671,2]
[322169684,1712862647132,-500.0,0.00027671,2]
[322169685,1712862647142,-500.0,0.00027671,2]
[322169686,1712862647152,-500.0,0.00027671,2]
[322169687,1712862647162,-2200.7,0.00027671,2]
[322169688,1712862647172,-1424.59,0.00027671,2]
[322169689,1712862647182,-500.0,0.00027671,2]
[322169690,1712862647193,-4685.35,0.00027671,2]
[322169691,1712862647203,-3660.5,0.00027671,2]
[322169692,1712862647214,-4484.42,0.00027671,2]
[322169693,1712862647225,-500.0,0.00027671,2]
[322169694,1712862647240,-500.0,0.00027671,2]
[322169695,1712862647252,-4086.01,0.00027671,2]
[322169696,1712862647263,-2609.05,0.00027671,2]
[322169697,1712862647274,-59690.02,0.00027671,2]
[322169698,1712862647285,-500.0,0.00027671,2]
[322169699,1712862647295,-500.0,0.00027671,2]
[322169700,1712862647305,-725.29,0.00027671,2]
[322169701,1712862647318,-500.0,0.00027671,2]
[322169702,1712862647328,-7886.43,0.00027671,2]
[322169703,1712862647339,-1762.38,0.00027671,2]
[322169704,1712862647348,-2898.73,0.00027671,2]
[322169705,1712862647357,-721.9,0.00027671,2]
[322169706,1712862647366,-6670.33,0.00027671,2]
[322169707,1712862647376,-4553.34,0.00027671,2]
[322169708,1712862647385,-2346.06,0.00027671,2]
[322169709,1712862647395,-561.66,0.00027671,2]
[322169710,1712862647408,-500.0,0.00027671,2]
[322169711,1712862647418,-500.0,0.00027671,2]
[322169712,1712862647430,-500.0,0.00027671,2]
[322169713,1712862647440,-500.0,0.00027671,2]
[322169714,1712862647450,-500.0,0.00027671,2]
[322169715,1712862647460,-1414.25,0.00027671,2]
[322169716,1712862647470,-500.0,0.00027671,2]
[322169717,1712862647479,-3046.54,0.00027671,2]
[322169718,1712862647488,-4945.6,0.00027671,2]
[322169719,1712862647498,-12173.57,0.00027671,2]
[322169720,1712862647508,-1030.54,0.00027671,2]
[322169721,1712862647517,-500.0,0.00027671,2]
[322169722,1712862647528,-10969.72,0.00027671,2]
[322169723,1712862647538,-17097.96,0.00027671,2]
[322169724,1712862647547,-500.0,0.00027671,2]
[322169725,1712862647558,-3177.03,0.00027671,2]
[322169726,1712862647569,-2343.98,0.00027671,2]
[322169727,1712862647578,-500.0,0.00027671,2]
[322169728,1712862647587,-3587.42,0.00027671,2]
[322169729,1712862647596,-2778.37,0.00027671,2]
[322169730,1712862647606,-500.0,0.00027671,2]
[322169731,1712862647615,-500.0,0.00027671,2]
[322169732,1712862647625,-3338.42,0.00027671,2]
[322169733,1712862647635,-2072.85,0.00027671,2]
[322169734,1712862647645,-898.33,0.00027671,2]
[322169735,1712862647655,-3768.29,0.00027671,2]
[322169736,1712862647665,-500.0,0.00027671,2]
[322169737,1712862647676,-4040.69,0.00027671,2]
[322169738,1712862647685,-4730.77,0.00027671,2]
[322169739,1712862647695,-500.0,0.00027671,2]
[322169740,1712862647704,-2027.16,0.00027671,2]
[322169741,1712862647714,-500.0,0.00027671,2]
[322169742,1712862647725,-3854.26,0.00027671,2]
[322169743,1712862647735,-7681.11,0.00027671,2]
[322169744,1712862647745,-3244.94,0.00027671,2]
[322169745,1712862647755,-2334.58,0.00027671,2]
[322169746,1712862647765,-2230.44,0.00027671,2]
[322169747,1712862647776,-999.98,0.00027671,2]
[322169748,1712862647786,-1116.04,0.00027671,2]
[322169749,1712862647795,-1655.75,0.00027671,2]
[322169750,1712862647805,-2713.28,0.00027671,2]
[322169751,1712862647817,-1348.28,0.00027671,2]
[322169752,1712862647825,-307.44894874,0.00027671,2]
[322169753,1712862647834,-500.0,0.00027671,2]
[322169754,1712862647844,-500.0,0.00027671,2]
[322169755,1712862647855,-500.0,0.00027671,2]
[322169756,1712862647866,-7555.19,0.00027671,2]
[322169757,1712862647875,-6317.49,0.00027671,2]
[322169758,1712862647884,-21516.96,0.00027671,2]
[322169759,1712862647898,-500.0,0.00027671,2]
[322169760,1712862647908,-4005.01,0.00027671,2]
[322169761,1712862647917,-2834.66,0.00027671,2]
[322169762,1712862647926,-500.0,0.00027671,2]
[322169763,1712862647936,-500.0,0.00027671,2]
[322169764,1712862647945,-4366.47,0.00027671,2]
[322169765,1712862647955,-805.55,0.00027671,2]
[322169766,1712862647965,-1295.44,0.00027671,2]
[322169767,1712862647974,-4917.17,0.00027671,2]
[322169768,1712862647982,-500.0,0.00027671,2]
[322169769,1712862647991,-4077.09,0.00027671,2]
[322169770,1712862648000,-3766.3,0.00027671,2]
[322169771,1712862648010,-500.0,0.00027671,2]
[322169772,1712862648019,-500.0,0.00027671,2]
[322169773,1712862648029,-1421.67,0.00027671,2]
[322169774,1712862648039,-160.66606136,0.00027671,2]
[322169775,1712862648048,-500.0,0.00027671,2]
[322169776,1712862648058,-2992.26,0.00027671,2]
[322169777,1712862648067,-500.0,0.00027671,2]
[322169778,1712862648077,-1177.76,0.00027671,2]
[322169779,1712862648086,-3816.39,0.00027671,2]
[322169780,1712862648095,-58166.46,0.00027671,2]
[322169781,1712862648104,-1066.03,0.00027671,2]
[322169782,1712862648113,-500.0,0.00027671,2]
[322169783,1712862648126,-500.0,0.00027671,2]
[322169784,1712862648135,-2862.97,0.00027671,2]
[322169785,1712862648144,-21531.27,0.00027671,2]
[322169786,1712862648154,-500.0,0.00027671,2]
[322169787,1712862648164,-3986.84,0.00027671,2]
[322169788,1712862648173,-4242.54,0.00027671,2]
[322169789,1712862648182,-2331.95,0.00027671,2]
[322169790,1712862648192,-500.0,0.00027671,2]
[322169791,1712862648201,-614.23025427,0.00027671,2]
[322169792,1712862648210,-2609.07,0.00027671,2]
[322169793,1712862648220,-500.0,0.00027671,2]
[322169794,1712862648230,-500.0,0.00027671,2]
[322169795,1712862648239,-755.53,0.00027671,2]
[322169796,1712862648248,-21054.72,0.00027671,2]
[322169797,1712862648257,-3182.44,0.00027671,2]
[322169798,1712862648266,-500.0,0.00027671,2]
[322169799,1712862648275,-807.25,0.00027671,2]
[322169800,1712862648284,-895.44,0.00027671,2]
[322169801,1712862648293,-6350.79,0.00027671,2]
[322169802,1712862648304,-4154.54,0.00027671,2]
[322169803,1712862648318,-1970.37,0.00027671,2]
[322169804,1712862648328,-534.86,0.00027671,2]
[322169805,1712862648339,-1754.9,0.00027671,2]
[322169806,1712862648350,-4797.91,0.00027671,2]
[322169807,1712862648359,-5143.36,0.00027671,2]
[322169808,1712862648368,-676.08,0.00027671,2]
[322169809,1712862648377,-9941.37,0.00027671,2]
[322169810,1712862648386,-500.0,0.00027671,2]
[322169811,1712862648395,-8367.12,0.00027671,2]
[322169812,1712862648404,-1707.83,0.00027671,2]
[322169813,1712862648413,-500.0,0.00027671,2]
[322169814,1712862648422,-500.0,0.00027671,2]
[322169815,1712862648431,-3641.25,0.00027671,2]
[322169816,1712862648442,-4393.58,0.00027671,2]
[322169817,1712862648451,-500.0,0.00027671,2]
[322169818,1712862648462,-3438.3,0.00027671,2]
[322169819,1712862648473,-6274.53,0.00027671,2]
[322169820,1712862648483,-500.0,0.00027671,2]
[322169821,1712862648492,-8572.11,0.00027671,2]
[322169822,1712862648502,-545.12,0.00027671,2]
[322169823,1712862648511,-500.0,0.00027671,2]
[322169824,1712862648520,-500.0,0.00027671,2]
[322169825,1712862648529,-500.0,0.00027671,2]
[322169826,1712862648538,-566.27,0.00027671,2]
[322169827,1712862648547,-500.0,0.00027671,2]
[322169828,1712862648557,-500.0,0.00027671,2]
[322169829,1712862648567,-7273.74,0.00027671,2]
[322169830,1712862648577,-2974.95,0.00027671,2]
[322169831,1712862648587,-791.37,0.00027671,2]
[322169832,1712862648599,-500.0,0.00027671,2]
[322169833,1712862648608,-500.0,0.00027671,2]
[322169834,1712862648619,-4336.43,0.00027671,2]
[322169835,1712862648628,-8157.52,0.00027671,2]
[322169836,1712862648638,-500.0,0.00027671,2]
[322169837,1712862648648,-500.0,0.00027671,2]
[322169838,1712862648660,-2397.57,0.00027671,2]
[322169839,1712862648670,-2429.47,0.00027671,2]
[322169840,1712862648679,-713.43,0.00027671,2]
[322169841,1712862648690,-500.0,0.00027671,2]
[322169842,1712862648699,-3416.06,0.00027671,2]
[322169843,1712862648709,-3406.19,0.00027671,2]
[322169844,1712862648719,-1973.92,0.00027671,2]
[322169845,1712862648729,-4251.23,0.00027671,2]
[322169846,1712862648738,-3695.23,0.00027671,2]
[322169847,1712862648748,-1840.57,0.00027671,2]
[322169848,1712862648758,-500.0,0.00027671,2]
[322169849,1712862648768,-4971.46,0.00027671,2]
[322169850,1712862648778,-6194.04,0.00027671,2]
[322169851,1712862648788,-500.0,0.00027671,2]
[322169852,1712862648797,-7501.52,0.00027671,2]
[322169853,1712862648806,-924.72,0.00027671,2]
[322169854,1712862648817,-4603.84,0.00027671,2]
[322169855,1712862648827,-4851.99,0.00027671,2]
[322169856,1712862648837,-497.61100845,0.00027671,2]
[322169857,1712862648847,-5645.61,0.00027671,2]
[322169858,1712862648856,-2712.2,0.00027671,2]
[322169859,1712862648865,-500.0,0.00027671,2]
[322169860,1712862648875,-500.0,0.00027671,2]
[322169861,1712862648885,-7813.54,0.00027671,2]
[322169862,1712862648895,-8644.83,0.00027671,2]
[322169863,1712862648904,-1591.4,0.00027671,2]
[322169864,1712862648913,-500.0,0.00027671,2]
[322169865,1712862648923,-500.0,0.00027671,2]
[322169866,1712862648932,-5799.04,0.00027671,2]
[322169867,1712862648941,-16678.21,0.00027671,2]
[322169868,1712862648950,-2254.38,0.00027671,2]
[322169869,1712862648964,-500.0,0.00027671,2]
[322169870,1712862648973,-11364.73,0.00027671,2]
[322169871,1712862648982,-2386.46,0.00027671,2]
[322169872,1712862648991,-500.0,0.00027671,2]
[322169873,1712862649000,-3334.3,0.00027671,2]
[322169874,1712862649010,-500.0,0.00027671,2]
[322169875,1712862649019,-636.19,0.00027671,2]
[322169876,1712862649028,-4011.23,0.00027671,2]
[322169877,1712862649038,-500.0,0.00027671,2]
[322169878,1712862649047,-3590.52,0.00027671,2]
[322169879,1712862649056,-3817.87,0.00027671,2]
[322169880,1712862649067,-194.72613442,0.00027671,2]
[322169881,1712862649076,-500.0,0.00027671,2]
[322169882,1712862649085,-8382.71,0.00027671,2]
[322169883,1712862649094,-1073.63,0.00027671,2]
[322169884,1712862649104,-38439.3,0.00027671,2]
[322169885,1712862649114,-691.69,0.00027671,2]
[322169886,1712862649123,-3908.68,0.00027671,2]
[322169887,1712862649133,-1196.85,0.00027671,2]
[322169888,1712862649143,-500.0,0.00027671,2]
[322169889,1712862649152,-5883.39,0.00027671,2]
[322169890,1712862649162,-2222.24,0.00027671,2]
[322169891,1712862649171,-500.0,0.00027671,2]
[322169892,1712862649182,-500.0,0.00027671,2]
[322169893,1712862649192,-738.47,0.00027671,2]
[322169894,1712862649206,-500.0,0.00027671,2]
[322169895,1712862649216,-500.0,0.00027671,2]
[322169896,1712862649226,-562.09,0.000277,2]
[322169897,1712862649238,-16292.77123109,0.00027807,2]
[322169898,1712862649248,-2949.42059025,0.00027926,2]
[322169899,1712862649257,-500.0,0.00027945,2]
[322169900,1712862649267,-500.0,0.00027945,2]
[322169901,1712862649277,-548.35,0.00027945,2]
[322169902,1712862649287,-1950.7,0.00027945,2]
[322169903,1712862649298,-778.54,0.00027945,2]
[322169904,1712862649308,-1155.02,0.00027945,2]
[322169905,1712862649322,-500.0,0.00027945,2]
[322169906,1712862649332,-703.76,0.00027945,2]
[322169907,1712862649341,-500.0,0.00027945,2]
[322169908,1712862649351,-500.0,0.00027945,2]
[322169909,1712862649361,-1585.7,0.00027945,2]
[322169910,1712862649371,-500.0,0.00027945,2]
[322169911,1712862649380,-924.54,0.00027945,2]
[322169912,1712862649390,-500.0,0.00027945,2]
[322169913,1712862649400,-500.0,0.00027945,2]
[322169914,1712862649409,-500.0,0.00027945,2]
[322169915,1712862649419,-500.0,0.00027945,2]
[322169916,1712862649428,-500.0,0.00027945,2]
[322169917,1712862649437,-286.66971166,0.00027945,2]
[322169918,1712862649447,-500.0,0.00027945,2]
[322169919,1712862649457,-500.0,0.00027945,2]
[322169920,1712862649467,-500.0,0.00027945,2]
[322169921,1712862649476,-500.0,0.00027945,2]
[322169922,1712862649486,-919.52,0.00027945,2]
[322169923,1712862649495,-500.0,0.00027945,2]
[322169924,1712862649504,-830.71,0.00027945,2]
[322169925,1712862649514,-1593.66,0.00027945,2]
[322169926,1712862649523,-627.3,0.00027945,2]
[322169927,1712862649532,-500.0,0.00027945,2]
[322169928,1712862649542,-500.0,0.00027945,2]
[322169929,1712862649551,-793.37,0.00027945,2]
[322169930,1712862649564,-1145.97,0.00027945,2]
[322169931,1712862649575,-500.0,0.00027945,2]
[322169932,1712862649585,-500.0,0.00027945,2]
[322169933,1712862649594,-880.94,0.00027945,2]
[322169934,1712862649604,-500.0,0.00027945,2]
[322169935,1712862649614,-1772.03,0.00027945,2]
[322169936,1712862649625,-177.6593878,0.00027945,2]
[322169937,1712862649635,-500.0,0.00027945,2]
[322169938,1712862649645,-500.0,0.00027945,2]
[322169939,1712862649654,-500.0,0.00027945,2]
[322169940,1712862649664,-500.0,0.00027945,2]
[322169941,1712862649674,-500.0,0.00027945,2]
[322169942,1712862649684,-1798.19,0.00027945,2]
[322169943,1712862649694,-500.0,0.00027945,2]
[322169944,1712862649704,-500.0,0.00027945,2]
[322169945,1712862649715,-1744.68,0.00027945,2]
[322169946,1712862649726,-500.0,0.00027945,2]
[322169947,1712862649736,-500.0,0.00027945,2]
[322169948,1712862649746,-500.0,0.00027945,2]
[322169949,1712862649757,-2010.88,0.00027945,2]
[322169950,1712862649767,-500.0,0.00027945,2]
[322169951,1712862649777,-500.0,0.00027945,2]
[322169952,1712862649786,-500.0,0.00027945,2]
[322169953,1712862649796,-500.0,0.00027945,2]
[322169954,1712862649807,-1170.95,0.00027945,2]
[322169955,1712862649819,-611.97339588,0.00027945,2]
[322169956,1712862649828,-2399.42,0.00027945,2]
[322169957,1712862649838,-500.0,0.00027945,2]
[322169958,1712862649847,-500.0,0.00027945,2]
[322169959,1712862649859,-967.44,0.00027945,2]
[322169960,1712862649868,-873.95,0.00027945,2]
[322169961,1712862649879,-1241.23,0.00027945,2]
[322169962,1712862649892,-500.0,0.00027945,2]
[322169963,1712862649904,-500.0,0.00027945,2]
[322169964,1712862649915,-500.0,0.00027945,2]
[322169965,1712862649925,-2052.61,0.00027945,2]
[322169966,1712862649935,-500.0,0.00027945,2]
[322169967,1712862649946,-877.37,0.00027945,2]
[322169968,1712862649958,-500.0,0.00027945,2]
[322169969,1712862649968,-1361.85,0.00027945,2]
[322169970,1712862649978,-861.5,0.00027945,2]
[322169971,1712862649988,-599.0827748,0.00027945,2]
[322169972,1712862649998,-500.0,0.00027945,2]
[322169973,1712862650008,-500.0,0.00027945,2]
[322169974,1712862650018,-1649.2,0.00027945,2]
[322169975,1712862650028,-500.0,0.00027945,2]
[322169976,1712862650039,-500.0,0.00027945,2]
[322169977,1712862650049,-500.0,0.00027945,2]
[322169978,1712862650060,-500.0,0.00027945,2]
[322169979,1712862650073,-500.0,0.00027945,2]
[322169980,1712862650083,-500.0,0.00027945,2]